[Event "Elite Hotels Open 2023"]
[Site "Elite Stadshotellet, Kungsgatan 6, Vaxjo, Sweden"]
[Date "2023.02.10"]
[Round "4.2"]
[White "Hector, Jonny"]
[Black "Sivuk, Vitaly"]
[Result "0-1"]
[TimeControl "15 minutes + 5 seconds per move from move one (Round 1 - 4) / 90 minutes + 30 seconds per move from move one (Round 5 - 8)"]
[WhiteTitle "GM"]
[BlackTitle "GM"]
[WhiteFideId "1700090"]
[BlackFideId "14116502"]
[WhiteElo "2466"]
[BlackElo "2530"]

1. e4 {[%clk 00:15:06]} {[%emt 00:00:03]} c5 {[%clk 00:15:06]} {[%emt
00:00:04]} 2. Nf3 {[%clk 00:15:08]} {[%emt 00:00:02]} d6 {[%clk 00:15:09]}
{[%emt 00:00:02]} 3. d4 {[%clk 00:15:12]} {[%emt 00:00:02]} cxd4 {[%clk
00:15:11]} {[%emt 00:00:03]} 4. Nxd4 {[%clk 00:15:14]} {[%emt 00:00:01]} Nf6
{[%clk 00:15:14]} {[%emt 00:00:03]} 5. Nc3 {[%clk 00:15:18]} {[%emt 00:00:01]}
a6 {[%clk 00:15:18]} {[%emt 00:00:02]} 6. Bg5 {[%clk 00:15:18]} {[%emt
00:00:03]} Nbd7 {[%clk 00:15:21]} {[%emt 00:00:03]} 7. f4 {[%clk 00:15:18]}
{[%emt 00:00:04]} Qa5 {[%clk 00:15:22]} {[%emt 00:00:05]} 8. Qf3 {[%clk
00:15:18]} {[%emt 00:00:05]} h6 {[%clk 00:14:53]} {[%emt 00:00:34]} 9. Bh4
{[%clk 00:15:17]} {[%emt 00:00:06]} e5 {[%clk 00:14:43]} {[%emt 00:00:15]} 10.
Nb3 {[%clk 00:15:14]} {[%emt 00:00:08]} Qc7 {[%clk 00:14:42]} {[%emt 00:00:06]}
11. fxe5 {[%clk 00:15:12]} {[%emt 00:00:06]} dxe5 {[%clk 00:14:20]} {[%emt
00:00:29]} 12. O-O-O {[%clk 00:15:01]} {[%emt 00:00:15]} Be7 {[%clk 00:14:02]}
{[%emt 00:00:22]} 13. g4 {[%clk 00:14:48]} {[%emt 00:00:18]} Nb6 {[%clk
00:11:31]} {[%emt 00:02:37]} 14. Rg1 {[%clk 00:13:51]} {[%emt 00:01:02]} Be6
{[%clk 00:11:28]} {[%emt 00:00:07]} 15. Bf2 {[%clk 00:13:34]} {[%emt 00:00:23]}
Rc8 {[%clk 00:10:29]} {[%emt 00:01:04]} 16. h4 {[%clk 00:12:18]} {[%emt
00:01:20]} Na4 {[%clk 00:07:07]} {[%emt 00:03:28]} 17. Be1 {[%clk 00:10:18]}
{[%emt 00:02:06]} Ba3 {[%clk 00:05:38]} {[%emt 00:01:33]} 18. bxa3 {[%clk
00:09:32]} {[%emt 00:00:51]} Nxc3 {[%clk 00:05:40]} {[%emt 00:00:02]} 19. Bxc3
{[%clk 00:09:21]} {[%emt 00:00:17]} Qxc3 {[%clk 00:05:43]} {[%emt 00:00:02]} 20.
Qxc3 {[%clk 00:08:47]} {[%emt 00:00:39]} Rxc3 {[%clk 00:05:45]} {[%emt
00:00:03]} 21. g5 {[%clk 00:07:20]} {[%emt 00:01:32]} hxg5 {[%clk 00:05:46]}
{[%emt 00:00:05]} 22. hxg5 {[%clk 00:07:19]} {[%emt 00:00:05]} Nxe4 {[%clk
00:04:24]} {[%emt 00:01:27]} 23. Re1 {[%clk 00:07:05]} {[%emt 00:00:20]} Nd6
{[%clk 00:02:12]} {[%emt 00:02:16]} 24. Rxe5 {[%clk 00:05:48]} {[%emt
00:01:23]} Rh2 {[%clk 00:02:06]} {[%emt 00:00:11]} 25. Bd3 {[%clk 00:04:14]}
{[%emt 00:01:39]} Kf8 {[%clk 00:00:26]} {[%emt 00:01:44]} 26. g6 {[%clk
00:03:52]} {[%emt 00:00:28]} b6 {[%clk 00:00:15]} {[%emt 00:00:17]} 27. gxf7
{[%clk 00:03:49]} {[%emt 00:00:07]} Bxf7 {[%clk 00:00:18]} {[%emt 00:00:03]} 28.
Reg5 {[%clk 00:03:34]} {[%emt 00:00:18]} Bc4 {[%clk 00:00:14]} {[%emt
00:00:09]} 29. Bg6 {[%clk 00:03:03]} {[%emt 00:00:37]} Rf3 {[%clk 00:00:10]}
{[%emt 00:00:09]} 30. Rd1 {[%clk 00:02:43]} {[%emt 00:00:26]} Rf1 {[%clk
00:00:09]} {[%emt 00:00:06]} 31. Rxf1+ {[%clk 00:02:33]} {[%emt 00:00:15]} Bxf1
{[%clk 00:00:13]} {[%emt 00:00:01]} 32. Nd4 {[%clk 00:02:20]} {[%emt 00:00:18]}
Bc4 {[%clk 00:00:12]} {[%emt 00:00:07]} 33. Kb2 {[%clk 00:02:12]} {[%emt
00:00:13]} Ke7 {[%clk 00:00:11]} {[%emt 00:00:05]} 34. Rg3 {[%clk 00:02:02]}
{[%emt 00:00:15]} Kf6 {[%clk 00:00:15]} 35. a4 {[%clk 00:01:42]} {[%emt
00:00:26]} a5 {[%clk 00:00:17]} {[%emt 00:00:02]} 36. Nc6 {[%clk 00:01:25]}
{[%emt 00:00:22]} Rh6 {[%clk 00:00:14]} {[%emt 00:00:08]} 37. Bd3 {[%clk
00:01:28]} {[%emt 00:00:02]} Bxd3 {[%clk 00:00:16]} {[%emt 00:00:03]} 38. Rxd3
{[%clk 00:01:31]} {[%emt 00:00:01]} Nc4+ {[%clk 00:00:09]} {[%emt 00:00:12]} 39.
Kc3 {[%clk 00:01:33]} {[%emt 00:00:03]} Rh4 {[%clk 00:00:11]} {[%emt 00:00:03]}
40. Nb8 {[%clk 00:01:32]} {[%emt 00:00:06]} Ke6 {[%clk 00:00:10]} {[%emt
00:00:07]} 41. Nd7 {[%clk 00:01:32]} {[%emt 00:00:04]} Ne5 {[%clk 00:00:12]}
{[%emt 00:00:04]} 42. Nxe5 {[%clk 00:01:15]} {[%emt 00:00:22]} Kxe5 {[%clk
00:00:16]} {[%emt 00:00:02]} 43. Rg3 {[%clk 00:01:18]} {[%emt 00:00:01]} Kf6
{[%clk 00:00:17]} {[%emt 00:00:05]} 44. Rf3+ {[%clk 00:01:10]} {[%emt
00:00:12]} Ke6 {[%clk 00:00:20]} {[%emt 00:00:02]} 45. Rg3 {[%clk 00:01:13]}
{[%emt 00:00:02]} Kf7 {[%clk 00:00:19]} {[%emt 00:00:06]} 46. Rg5 {[%clk
00:01:06]} {[%emt 00:00:12]} Rxa4 {[%clk 00:00:11]} {[%emt 00:00:13]} 47. Kd3
{[%clk 00:00:43]} {[%emt 00:00:27]} Rb4 {[%clk 00:00:10]} {[%emt 00:00:06]} 48.
a3 {[%clk 00:00:47]} {[%emt 00:00:02]} Rb1 {[%clk 00:00:13]} {[%emt 00:00:01]}
49. Ke4 {[%clk 00:00:45]} {[%emt 00:00:08]} g6 {[%clk 00:00:14]} {[%emt
00:00:04]} 50. Rd5 {[%clk 00:00:46]} {[%emt 00:00:03]} Kf6 {[%clk 00:00:15]}
{[%emt 00:00:05]} 51. Rd6+ {[%clk 00:00:39]} {[%emt 00:00:12]} Kg5 {[%clk
00:00:19]} {[%emt 00:00:01]} 52. Kf3 {[%clk 00:00:43]} {[%emt 00:00:01]} Kf5
{[%clk 00:00:22]} {[%emt 00:00:02]} 53. Rd5+ {[%clk 00:00:46]} {[%emt
00:00:02]} Ke6 {[%clk 00:00:26]} 54. Rg5 {[%clk 00:00:50]} Kf6 {[%clk
00:00:31]} 55. Rd5 {[%clk 00:00:54]} {[%emt 00:00:03]} g5 {[%clk 00:00:33]}
{[%emt 00:00:03]} 56. Kg4 {[%clk 00:00:58]} {[%emt 00:00:01]} Rg1+ {[%clk
00:00:30]} {[%emt 00:00:07]} 57. Kf3 {[%clk 00:01:02]} {[%emt 00:00:01]} Re1
{[%clk 00:00:30]} {[%emt 00:00:05]} 58. Rb5 {[%clk 00:01:01]} {[%emt 00:00:07]}
Re6 {[%clk 00:00:34]} {[%emt 00:00:01]} 59. Kg4 {[%clk 00:00:53]} {[%emt
00:00:13]} Rc6 {[%clk 00:00:37]} {[%emt 00:00:03]} 60. Rf5+ {[%clk 00:00:52]}
{[%emt 00:00:05]} Ke6 {[%clk 00:00:41]} {[%emt 00:00:01]} 61. Kxg5 {[%clk
00:00:51]} {[%emt 00:00:06]} Rxc2 {[%clk 00:00:13]} {[%emt 00:00:34]} 62. Rf6+
{[%clk 00:00:55]} Kd5 {[%clk 00:00:13]} {[%emt 00:00:05]} 63. Rxb6 {[%clk
00:00:57]} {[%emt 00:00:03]} Kc5 {[%clk 00:00:08]} {[%emt 00:00:09]} 64. Rb8
{[%clk 00:00:49]} {[%emt 00:00:13]} Ra2 {[%clk 00:00:11]} {[%emt 00:00:03]} 65.
Kf4 {[%clk 00:00:52]} {[%emt 00:00:02]} Rxa3 {[%clk 00:00:15]} {[%emt
00:00:02]} 66. Ke4 {[%clk 00:00:56]} {[%emt 00:00:01]} Rh3 {[%clk 00:00:13]}
{[%emt 00:00:05]} 67. Rc8+ {[%clk 00:00:59]} {[%emt 00:00:03]} Kb4 {[%clk
00:00:18]} {[%emt 00:00:01]} 68. Rb8+ {[%clk 00:01:02]} {[%emt 00:00:01]} Kc3
{[%clk 00:00:16]} {[%emt 00:00:05]} 69. Rc8+ {[%clk 00:01:02]} {[%emt
00:00:06]} Kb2 {[%clk 00:00:14]} {[%emt 00:00:07]} 70. Ra8 {[%clk 00:01:06]}
{[%emt 00:00:02]} Ra3 {[%clk 00:00:14]} {[%emt 00:00:05]} 71. Kd4 {[%clk
00:01:09]} {[%emt 00:00:02]} a4 {[%clk 00:00:13]} {[%emt 00:00:06]} 72. Ra7
{[%clk 00:01:04]} {[%emt 00:00:10]} Rh3 {[%clk 00:00:07]} {[%emt 00:00:11]} 73.
Kc4 {[%clk 00:00:16]} {[%emt 00:00:52]} Rc3+ {[%clk 00:00:09]} {[%emt
00:00:03]} 74. Kd4 {[%clk 00:00:19]} {[%emt 00:00:03]} a3 {[%clk 00:00:12]}
{[%emt 00:00:03]} 75. Ra8 {[%clk 00:00:13]} {[%emt 00:00:10]} Rb3 {[%clk
00:00:15]} {[%emt 00:00:02]} 76. Kc4 {[%clk 00:00:14]} {[%emt 00:00:05]} a2
{[%clk 00:00:15]} {[%emt 00:00:04]} 77. Ra7 {[%clk 00:00:09]} {[%emt 00:00:10]}
Ra3 {[%clk 00:00:19]} {[%emt 00:00:02]} 78. Rb7+ {[%clk 00:00:10]} {[%emt
00:00:03]} Kc2 {[%clk 00:00:23]} 79. Kd4 {[%emt 00:00:04]} 0-1

[Event "Elite Hotels Open 2023"]
[Site "Elite Stadshotellet, Kungsgatan 6, Vaxjo, Sweden"]
[Date "2023.02.10"]
[Round "4.3"]
[White "Abdrlauf, Elham"]
[Black "Poley, Vladimir"]
[Result "1-0"]
[TimeControl "15 minutes + 5 seconds per move from move one (Round 1 - 4) / 90 minutes + 30 seconds per move from move one (Round 5 - 8)"]
[WhiteTitle "IM"]
[BlackTitle "IM"]
[WhiteFideId "1533533"]
[BlackFideId "13500090"]
[WhiteElo "2527"]
[BlackElo "2325"]

1. e4 {[%clk 00:15:09]} {[%emt 00:05:06]} g6 {[%clk 00:15:09]} {[%emt
00:00:02]} 2. d4 {[%clk 00:15:13]} Bg7 {[%clk 00:15:13]} {[%emt 00:00:01]} 3.
Nf3 {[%clk 00:15:17]} {[%emt 00:00:01]} c6 {[%clk 00:15:17]} {[%emt 00:00:01]}
4. h3 {[%clk 00:14:58]} {[%emt 00:00:24]} d5 {[%clk 00:15:21]} {[%emt
00:00:02]} 5. e5 {[%clk 00:15:01]} Na6 {[%clk 00:15:19]} {[%emt 00:00:07]} 6.
Bxa6 {[%clk 00:14:29]} {[%emt 00:00:38]} Qa5+ {[%clk 00:15:23]} {[%emt
00:00:01]} 7. Nc3 {[%clk 00:14:26]} {[%emt 00:00:08]} Qxa6 {[%clk 00:15:26]}
{[%emt 00:00:02]} 8. Be3 {[%clk 00:14:30]} Nh6 {[%clk 00:15:21]} {[%emt
00:00:11]} 9. g4 {[%clk 00:14:31]} {[%emt 00:00:04]} f6 {[%clk 00:15:13]}
{[%emt 00:00:13]} 10. Qd2 {[%clk 00:13:58]} {[%emt 00:00:37]} Nf7 {[%clk
00:15:16]} {[%emt 00:00:02]} 11. O-O-O {[%clk 00:14:00]} {[%emt 00:00:02]} fxe5
{[%clk 00:15:14]} {[%emt 00:00:08]} 12. Nxe5 {[%clk 00:14:01]} {[%emt
00:00:05]} Nxe5 {[%clk 00:15:16]} {[%emt 00:00:02]} 13. dxe5 {[%clk 00:14:05]}
{[%emt 00:00:03]} Bxe5 {[%clk 00:15:12]} {[%emt 00:00:08]} 14. Rhe1 {[%clk
00:12:51]} {[%emt 00:01:18]} Qa5 {[%clk 00:11:35]} {[%emt 00:03:43]} 15. Bd4
{[%clk 00:11:48]} {[%emt 00:01:08]} Bxd4 16. Qxd4 {[%clk 00:11:51]} Rf8 {[%clk
00:11:10]} {[%emt 00:00:13]} 17. Qg7 {[%clk 00:10:39]} {[%emt 00:01:17]} Qc7
{[%clk 00:11:08]} {[%emt 00:00:07]} 18. Rxd5 {[%clk 00:09:19]} {[%emt
00:01:26]} Qf4+ {[%clk 00:10:38]} {[%emt 00:00:34]} 19. Rd2 {[%clk 00:08:16]}
{[%emt 00:01:08]} Qf6 {[%clk 00:07:28]} {[%emt 00:03:16]} 20. Qxh7 {[%clk
00:08:08]} {[%emt 00:00:13]} Be6 {[%clk 00:06:57]} {[%emt 00:00:36]} 21. Ne4
{[%clk 00:07:54]} {[%emt 00:00:19]} Qf7 {[%clk 00:05:57]} {[%emt 00:01:04]} 22.
Qxf7+ {[%clk 00:07:53]} {[%emt 00:00:06]} Rxf7 {[%clk 00:05:26]} {[%emt
00:00:36]} 23. Ng5 {[%clk 00:07:54]} {[%emt 00:00:04]} 1-0

[Event "Elite Hotels Open 2023"]
[Site "Elite Stadshotellet, Kungsgatan 6, Vaxjo, Sweden"]
[Date "2023.02.10"]
[Round "4.4"]
[White "Trost, Edvin"]
[Black "Hillarp, Tiger"]
[Result "1/2-1/2"]
[TimeControl "15 minutes + 5 seconds per move from move one (Round 1 - 4) / 90 minutes + 30 seconds per move from move one (Round 5 - 8)"]
[WhiteTitle "FM"]
[BlackTitle "GM"]
[WhiteFideId "1729519"]
[BlackFideId "1700812"]
[WhiteElo "2364"]
[BlackElo "2511"]

1. d4 {[%clk 00:15:08]} {[%emt 00:00:02]} e6 {[%clk 00:15:09]} {[%emt
00:00:01]} 2. Nf3 {[%clk 00:15:03]} {[%emt 00:00:10]} f5 {[%clk 00:15:11]}
{[%emt 00:00:03]} 3. g3 {[%clk 00:15:01]} {[%emt 00:00:07]} Nf6 {[%clk
00:15:14]} {[%emt 00:00:02]} 4. Bg2 {[%clk 00:15:04]} {[%emt 00:00:02]} d5
{[%clk 00:15:12]} {[%emt 00:00:06]} 5. O-O {[%clk 00:15:00]} {[%emt 00:00:10]}
Bd6 {[%clk 00:15:16]} {[%emt 00:00:01]} 6. c4 {[%clk 00:14:59]} {[%emt
00:00:05]} c6 {[%clk 00:15:17]} {[%emt 00:00:05]} 7. b3 {[%clk 00:14:47]}
{[%emt 00:00:18]} Qe7 {[%clk 00:15:20]} {[%emt 00:00:01]} 8. Bb2 {[%clk
00:14:47]} {[%emt 00:00:04]} b6 {[%clk 00:15:13]} {[%emt 00:00:13]} 9. Qc1
{[%clk 00:14:39]} {[%emt 00:00:13]} Bb7 {[%clk 00:15:09]} {[%emt 00:00:09]} 10.
Ba3 {[%clk 00:14:41]} {[%emt 00:00:04]} Nbd7 {[%clk 00:15:03]} {[%emt
00:00:10]} 11. Bxd6 {[%clk 00:13:47]} {[%emt 00:00:59]} Qxd6 {[%clk 00:15:06]}
{[%emt 00:00:01]} 12. Qa3 {[%clk 00:13:38]} {[%emt 00:00:15]} Qxa3 {[%clk
00:14:18]} {[%emt 00:00:53]} 13. Nxa3 {[%clk 00:13:42]} {[%emt 00:00:02]} Ke7
{[%clk 00:14:21]} {[%emt 00:00:01]} 14. Rac1 {[%clk 00:13:17]} {[%emt
00:00:30]} Rhc8 {[%clk 00:14:10]} {[%emt 00:00:16]} 15. Rfd1 {[%clk 00:12:19]}
{[%emt 00:01:03]} a5 {[%clk 00:13:27]} {[%emt 00:00:48]} 16. e3 {[%clk
00:11:59]} {[%emt 00:00:25]} h6 {[%clk 00:12:53]} {[%emt 00:00:38]} 17. Rc2
{[%clk 00:10:30]} {[%emt 00:01:34]} g5 {[%clk 00:12:36]} {[%emt 00:00:23]} 18.
Rdc1 {[%clk 00:10:24]} {[%emt 00:00:11]} Ne4 {[%clk 00:11:40]} {[%emt
00:01:01]} 19. Nd2 {[%clk 00:10:09]} {[%emt 00:00:20]} Nd6 {[%clk 00:10:58]}
{[%emt 00:00:47]} 20. Ndb1 {[%clk 00:06:56]} {[%emt 00:03:19]} b5 {[%clk
00:10:03]} {[%emt 00:00:59]} 21. cxb5 {[%clk 00:06:21]} {[%emt 00:00:40]} cxb5
{[%clk 00:10:06]} {[%emt 00:00:02]} 22. Bf1 {[%clk 00:05:06]} {[%emt 00:01:20]}
b4 {[%clk 00:09:39]} {[%emt 00:00:32]} 23. Nb5 {[%clk 00:05:02]} {[%emt
00:00:09]} Rxc2 {[%clk 00:07:06]} {[%emt 00:02:38]} 24. Rxc2 {[%clk 00:05:06]}
{[%emt 00:00:02]} Rc8 {[%clk 00:04:05]} {[%emt 00:03:05]} 25. Rxc8 {[%clk
00:04:58]} {[%emt 00:00:13]} Bxc8 {[%clk 00:04:08]} {[%emt 00:00:02]} 26. Nxd6
{[%clk 00:02:29]} {[%emt 00:02:34]} Kxd6 {[%clk 00:04:11]} {[%emt 00:00:01]} 27.
h3 {[%clk 00:02:07]} {[%emt 00:00:28]} e5 {[%clk 00:04:02]} {[%emt 00:00:14]}
28. Bb5 {[%clk 00:01:26]} {[%emt 00:00:45]} exd4 {[%clk 00:02:48]} {[%emt
00:01:19]} 29. Bxd7 {[%clk 00:00:25]} {[%emt 00:01:06]} Bxd7 {[%clk 00:02:52]}
{[%emt 00:00:02]} 30. exd4 {[%clk 00:00:30]} f4 {[%clk 00:02:50]} {[%emt
00:00:07]} 31. g4 {[%clk 00:00:12]} {[%emt 00:00:23]} Bb5 {[%clk 00:02:53]}
{[%emt 00:00:02]} 32. Nd2 {[%clk 00:00:12]} {[%emt 00:00:05]} Be2 {[%clk
00:02:53]} {[%emt 00:00:05]} 33. f3 {[%clk 00:00:07]} {[%emt 00:00:10]} Bd3
{[%clk 00:02:49]} {[%emt 00:00:09]} 34. Kf2 {[%clk 00:00:11]} Kc6 {[%clk
00:02:41]} {[%emt 00:00:14]} 35. Ke1 {[%clk 00:00:11]} {[%emt 00:00:05]} Kb5
{[%clk 00:02:43]} {[%emt 00:00:03]} 36. Kd1 {[%clk 00:00:07]} {[%emt 00:00:09]}
a4 {[%clk 00:01:55]} {[%emt 00:00:54]} 37. Kc1 {[%clk 00:00:10]} {[%emt
00:00:02]} Be2 {[%clk 00:01:55]} {[%emt 00:00:05]} 38. Kc2 {[%clk 00:00:11]}
{[%emt 00:00:03]} a3 {[%clk 00:01:06]} {[%emt 00:00:54]} 39. Kc1 {[%clk
00:00:14]} {[%emt 00:00:03]} Kc6 {[%clk 00:01:08]} {[%emt 00:00:02]} 40. Kc2
{[%clk 00:00:18]} {[%emt 00:00:02]} Kd6 {[%clk 00:01:11]} 41. Kc1 {[%clk
00:00:21]} {[%emt 00:00:02]} Ke6 {[%clk 00:01:15]} {[%emt 00:00:01]} 42. Kc2
{[%clk 00:00:26]} h5 {[%clk 00:01:16]} {[%emt 00:00:04]} 43. Kc1 {[%clk
00:00:25]} {[%emt 00:00:06]} Bd3 {[%clk 00:00:57]} {[%emt 00:00:24]} 44. Kd1
{[%clk 00:00:28]} {[%emt 00:00:02]} Kd6 {[%clk 00:00:44]} {[%emt 00:00:18]} 45.
Kc1 {[%clk 00:00:20]} {[%emt 00:00:13]} hxg4 {[%clk 00:00:45]} {[%emt
00:00:04]} 46. hxg4 {[%clk 00:00:23]} {[%emt 00:00:02]} Kc6 {[%clk 00:00:41]}
{[%emt 00:00:09]} 1/2-1/2

[Event "Elite Hotels Open 2023"]
[Site "Elite Stadshotellet, Kungsgatan 6, Vaxjo, Sweden"]
[Date "2023.02.10"]
[Round "4.5"]
[White "Blomqvist, Erik"]
[Black "Wagner, Stephan"]
[Result "1/2-1/2"]
[TimeControl "15 minutes + 5 seconds per move from move one (Round 1 - 4) / 90 minutes + 30 seconds per move from move one (Round 5 - 8)"]
[WhiteTitle "GM"]
[WhiteFideId "1709437"]
[BlackFideId "1613251"]
[WhiteElo "2510"]
[BlackElo "2264"]

1. e4 {[%clk 00:15:07]} {[%emt 00:00:02]} c6 {[%clk 00:15:08]} {[%emt
00:00:02]} 2. d4 {[%clk 00:15:07]} {[%emt 00:00:05]} d5 {[%clk 00:15:12]}
{[%emt 00:00:03]} 3. e5 {[%clk 00:15:11]} {[%emt 00:00:01]} Bf5 {[%clk
00:15:14]} {[%emt 00:00:02]} 4. c4 {[%clk 00:15:11]} {[%emt 00:00:04]} e6
{[%clk 00:15:13]} {[%emt 00:00:06]} 5. Nc3 {[%clk 00:15:15]} {[%emt 00:00:02]}
Bb4 {[%clk 00:14:57]} {[%emt 00:00:21]} 6. cxd5 {[%clk 00:15:13]} {[%emt
00:00:07]} Qxd5 {[%clk 00:13:53]} {[%emt 00:01:09]} 7. Nf3 {[%clk 00:14:04]}
{[%emt 00:01:13]} Ne7 {[%clk 00:13:21]} {[%emt 00:00:37]} 8. Be2 {[%clk
00:13:19]} {[%emt 00:00:50]} c5 {[%clk 00:11:57]} {[%emt 00:01:29]} 9. O-O
{[%clk 00:13:02]} {[%emt 00:00:22]} Bxc3 {[%clk 00:12:00]} {[%emt 00:00:03]} 10.
bxc3 {[%clk 00:13:06]} {[%emt 00:00:01]} Nbc6 {[%clk 00:11:58]} {[%emt
00:00:07]} 11. Ba3 {[%clk 00:12:12]} {[%emt 00:00:59]} cxd4 {[%clk 00:11:26]}
{[%emt 00:00:37]} 12. Nxd4 {[%clk 00:12:01]} {[%emt 00:00:16]} Nxd4 {[%clk
00:07:40]} {[%emt 00:03:51]} 13. cxd4 {[%clk 00:12:01]} {[%emt 00:00:04]} Nc6
{[%clk 00:07:38]} {[%emt 00:00:07]} 14. Qd2 {[%clk 00:07:42]} {[%emt 00:04:25]}
Qxd4 {[%clk 00:05:52]} {[%emt 00:01:51]} 15. Qg5 {[%clk 00:06:49]} {[%emt
00:00:57]} h6 {[%clk 00:04:12]} {[%emt 00:01:46]} 16. Qxg7 {[%clk 00:06:13]}
{[%emt 00:00:41]} Qxe5 {[%clk 00:04:16]} {[%emt 00:00:01]} 17. Qxe5 {[%clk
00:04:18]} {[%emt 00:02:00]} Nxe5 {[%clk 00:04:19]} {[%emt 00:00:02]} 18. Rfd1
{[%clk 00:04:10]} {[%emt 00:00:13]} Nc6 {[%clk 00:02:42]} {[%emt 00:01:42]} 19.
Bf3 {[%clk 00:03:44]} {[%emt 00:00:31]} Rd8 {[%clk 00:02:23]} {[%emt 00:00:24]}
20. Bd6 {[%clk 00:03:47]} {[%emt 00:00:02]} f6 {[%clk 00:02:05]} {[%emt
00:00:23]} 21. Bh5+ {[%clk 00:02:28]} {[%emt 00:01:24]} Kd7 {[%clk 00:02:05]}
{[%emt 00:00:05]} 22. Bf8+ {[%clk 00:02:24]} {[%emt 00:00:08]} Kc8 {[%emt
00:00:18]} 23. Rxd8+ {[%clk 00:02:20]} {[%emt 00:00:07]} Nxd8 {[%clk 00:01:30]}
{[%emt 00:00:30]} 24. Bg7 {[%clk 00:02:16]} {[%emt 00:00:06]} Rg8 {[%clk
00:01:16]} {[%emt 00:00:22]} 25. Bxf6 {[%clk 00:02:07]} {[%emt 00:00:14]} Be4
{[%clk 00:00:54]} {[%emt 00:00:27]} 26. f3 {[%clk 00:02:06]} {[%emt 00:00:07]}
Bd5 {[%clk 00:00:58]} 27. Kf2 {[%clk 00:01:59]} {[%emt 00:00:11]} Nc6 {[%clk
00:00:53]} {[%emt 00:00:09]} 28. a3 {[%clk 00:01:57]} {[%emt 00:00:09]} b5
{[%clk 00:00:42]} {[%emt 00:00:15]} 29. Rb1 {[%clk 00:01:49]} {[%emt 00:00:13]}
a6 {[%clk 00:00:44]} {[%emt 00:00:03]} 30. Bc3 {[%clk 00:01:10]} {[%emt
00:00:44]} Kc7 {[%clk 00:00:31]} {[%emt 00:00:19]} 31. h4 {[%clk 00:01:04]}
{[%emt 00:00:10]} Kb6 {[%clk 00:00:28]} {[%emt 00:00:07]} 32. g4 {[%clk
00:00:46]} {[%emt 00:00:23]} Kc5 {[%clk 00:00:23]} {[%emt 00:00:11]} 33. Bf6
{[%clk 00:00:45]} {[%emt 00:00:06]} Rf8 {[%clk 00:00:24]} {[%emt 00:00:04]} 34.
g5 {[%clk 00:00:45]} {[%emt 00:00:04]} hxg5 {[%clk 00:00:23]} {[%emt 00:00:06]}
35. hxg5 {[%clk 00:00:50]} {[%emt 00:00:01]} Kd6 {[%clk 00:00:19]} {[%emt
00:00:10]} 36. Rg1 {[%clk 00:00:32]} {[%emt 00:00:22]} a5 {[%clk 00:00:18]}
{[%emt 00:00:07]} 37. Bb2 {[%clk 00:00:22]} {[%emt 00:00:14]} e5 {[%clk
00:00:18]} {[%emt 00:00:04]} 38. g6 {[%clk 00:00:24]} {[%emt 00:00:04]} Nd4
{[%clk 00:00:14]} {[%emt 00:00:08]} 39. g7 {[%clk 00:00:27]} {[%emt 00:00:03]}
Rc8 {[%clk 00:00:15]} {[%emt 00:00:04]} 40. Bg6 {[%clk 00:00:14]} {[%emt
00:00:19]} Nxf3 {[%clk 00:00:13]} {[%emt 00:00:06]} 41. Rd1 {[%clk 00:00:14]}
{[%emt 00:00:04]} Nd4 {[%clk 00:00:16]} {[%emt 00:00:03]} 42. Bxd4 {[%clk
00:00:09]} {[%emt 00:00:10]} exd4 {[%clk 00:00:20]} {[%emt 00:00:01]} 43. Rxd4
{[%clk 00:00:13]} Ke5 {[%emt 00:00:07]} 44. Rxd5+ {[%clk 00:00:07]} {[%emt
00:00:05]} Kxd5 {[%clk 00:00:29]} {[%emt 00:00:01]} 45. Bf7+ {[%clk 00:00:11]}
{[%emt 00:00:01]} Kd4 {[%clk 00:00:32]} {[%emt 00:00:02]} 46. g8=Q {[%clk
00:00:14]} {[%emt 00:00:02]} Rxg8 {[%clk 00:00:36]} {[%emt 00:00:01]} 47. Bxg8
{[%clk 00:00:18]} Kc3 {[%clk 00:00:40]} {[%emt 00:00:01]} 48. Ke3 {[%clk
00:00:19]} {[%emt 00:00:03]} Kb2 {[%clk 00:00:44]} {[%emt 00:00:01]} 49. Kd2
{[%clk 00:00:22]} {[%emt 00:00:03]} Kxa3 {[%clk 00:00:48]} {[%emt 00:00:01]} 50.
Kc2 {[%clk 00:00:26]} {[%emt 00:00:01]} Kb4 {[%clk 00:00:50]} {[%emt 00:00:03]}
51. Kb2 {[%clk 00:00:29]} a4 {[%clk 00:00:43]} {[%emt 00:00:12]} 1/2-1/2